Cogmind - Beta 11 X8 @@@ ROGUE MODE // 2021.10.31 @ 16:02:13 Player: IceBox Result: Destroyed by 8R-AWN with 8R-AWN's Boregun Performance ------------- Evolutions (0) 0 Regions Visited (3) 600 Robots Destroyed (34) 170 Value Destroyed (617) 617 Prototype IDs (4) 80 Alien Tech Used (0) 0 Bonus (-899) -899 TOTAL SCORE: 568 Bonus ------- Friendly Fire -899 Cogmind --------- Core Integrity 0/250 Matter 189/300 Energy 160/160 System Corruption 0% Temperature Cool (0) Movement Rolling (130) Ox2 Location -10/Exiles Parts ------- > --- POWER (1) -------- Light Nuclear Core > --- PROPULSION (2) --- Light Treads Compact Wheel > --- UTILITY (2) ------ Large Storage Unit Hardened Medium Armor Plating > --- WEAPON (2) ------- Assault Rifle Assault Rifle > --- INVENTORY (15) --- Light Ion Engine Utility Shielding Assault Rifle Assault Rifle Light Assault Rifle Light Assault Rifle Light Assault Rifle Light Assault Rifle Light Assault Rifle Light Assault Rifle Rocket Launcher Rocket Launcher Peak State ------------ > --- POWER ------------ Light Nuclear Core > --- PROPULSION ------- Light Treads Light Treads > --- UTILITY ---------- High-capacity Storage Unit Propulsion Shielding > --- WEAPON ----------- Assault Rifle Light Assault Rifle > --- INVENTORY -------- Light Ion Engine Fission Core Compact Wheel Signal Interpreter Utility Shielding Hardened Medium Armor Plating Particle Gun Particle Gun Light EM Pulse Cannon Assault Rifle Assault Rifle Assault Rifle Light Assault Rifle Light Assault Rifle Light Assault Rifle Light Assault Rifle Light Assault Rifle Rocket Launcher Rocket Launcher Mining Laser [Rating: 12] Favorites ----------- Power Light Nuclear Core Engine Ion Engine Power Core Light Nuclear Core Propulsion Light Treads Treads Light Treads Leg Aluminum Leg Wheel Compact Wheel Utility Propulsion Shielding Device Heat Sink Storage High-capacity Storage Unit Protection Propulsion Shielding Weapon Assault Rifle Energy Gun Small Laser Ballistic Gun Assault Rifle Launcher Rocket Launcher Build | -11 -10 -10 -10 ------- Run | Scr Mat Min Exi Slots Evolved . | . . . . Power . | . . . . Propulsion . | . . . . Utility . | . . . . Weapon . | . . . . Parts Attached 40 | 2 26 5 7 Power 2 | . 1 1 . Engine 1 | . 1 . . Core 1 | . . 1 . Reactor . | . . . . Propulsion 18 | 1 13 3 1 Treads 10 | . 8 2 . Leg . | . . . . Wheel 8 | 1 5 1 1 Hover . | . . . . Flight . | . . . . Utility 7 | . 5 . 2 Device 1 | . 1 . . Storage 4 | . 3 . 1 Processor . | . . . . Hackware . | . . . . Protection 2 | . 1 . 1 Artifact . | . . . . Weapon 13 | 1 7 1 4 Energy Gun 1 | 1 . . . Energy Cannon . | . . . . Ballistic Gun 10 | . 7 1 2 Ballistic Cannon . | . . . . Launcher 2 | . . . 2 Special Weapon . | . . . . Impact Weapon . | . . . . Slashing Weapon . | . . . . Piercing Weapon . | . . . . Special Melee Weapon . | . . . . Unidentified Prototypes . | . . . . Parts Lost 5 | . 3 . 2 Power 1 | . 1 . . Propulsion 2 | . 1 . 1 Utility 1 | . . . 1 Weapon 1 | . 1 . . Highest Loss Streak 2 | . 2 . 2 Average Slot Usage (%) 97 | . 92 100 100 Engine 6 | . 13 11 . Core 7 | . . 2 14 Treads 23 | . 18 22 27 Wheel 4 | . 9 5 . Storage 14 | . 14 14 14 Protection 10 | . 5 14 14 Ballistic Gun 27 | . 27 28 27 Naked Turns . | . . . . Heaviest Build 90 | 11 90 50 49 Greatest Support 40 | 20 40 40 40 Greatest Overweight (x) 8 | . 8 3 1 Average Overweight (x) 1 | . 1 2 . Largest Inventory Capacity 25 | 8 25 20 20 Average Capacity 16 | 8 12 20 19 Most Carried 20 | 7 19 20 20 Average Carried 12 | 6 9 19 13 Final Capacity 20 | 8 20 20 15 Final Carried 20 | 7 19 20 12 Class Distribution -------------------- 100% | Mutant Dominant Class ---------------- Mutant | -10/Materials Mutant | -10/Mines Mutant | -10/Exiles Resources | -11 -10 -10 -10 ----------- Run | Scr Mat Min Exi Matter Collected 961 | 225 458 204 74 Remotely . | . . . . Salvage Created 1000 | 108 710 158 24 Parts 61 | 3 32 15 11 Haulers Intercepted 1 | . 1 . . Recyclers Shooed . | . . . . Parts Field Recycled . | . . . . Retrieved Matter . | . . . . Parts Self-Destructed . | . . . . Prevented . | . . . . Kills | -11 -10 -10 -10 ------- Run | Scr Mat Min Exi Combat Hostiles Destroyed 25 | . 15 8 2 Guns 23 | . 15 8 . AOE 2 | . . . 2 Classes Destroyed 9 | 2 5 . 2 Worker 1 | . 1 . . Tunneler 1 | 1 . . . Hauler 1 | . 1 . . Recycler 3 | 1 2 . . Watcher 3 | . 3 . . Swarmer 12 | . 6 6 . Grunt 11 | . 9 2 . Zionite 1 | . . . 1 Assembled 7 | . . . 7 Best Kill Streak 4 | 2 3 3 4 Combat Bots Only 3 | . 3 3 2 Max Kills in Single Turn 5 | 1 1 2 5 Gunslinging 1 | . . 1 . Exploded 2 | . . . 2 Melee . | . . . . Uniques/NPCs Destroyed 1 | . . . 1 EX-HEX (-10/Exiles) Combat | -11 -10 -10 -10 -------- Run | Scr Mat Min Exi Damage Taken 1235 | . 532 226 477 Core 258 | . 130 29 99 Absorbed by Shields . | . . . . Core Remaining (%) 100 | 100 . . . Volleys Fired 95 | 5 60 18 12 Largest 2 | 2 2 2 2 Hottest 66 | 60 40 40 66 Shots Fired 189 | 10 120 36 23 Gun 182 | 10 120 36 16 Cannon . | . . . . Launcher 7 | . . . 7 Special . | . . . . Kinetic 177 | 5 120 36 16 Thermal 5 | 5 . . . Explosive 7 | . . . 7 Electromagnetic . | . . . . Robot Hit Streak 11 | 7 11 9 5 Robot Miss Streak 5 | 1 4 2 5 Penetration Max . | . . . . Secondary Targets 4 | . 1 3 . Max Gunslinging Chain 1 | . 1 1 . Shots Hit Robots 116 | 7 71 25 13 Core Hits 73 | 3 39 11 20 Critical Kills 1 | . 1 . . Critical Parts Destroyed . | . . . . Critical Strikes 1 | . 1 . . Destroy 1 | . 1 . . Melee Attacks . | . . . . Impact . | . . . . Slashing . | . . . . Piercing . | . . . . Sneak Attacks . | . . . . Combat Hostiles . | . . . . Follow-up Attacks . | . . . . Damage Inflicted 1998 | 64 895 331 708 Guns 1337 | 64 800 331 142 Cannons . | . . . . Explosions 660 | . 94 . 566 Melee . | . . . . Ramming 1 | . 1 . . Kinetic 1295 | 22 800 331 142 Thermal 42 | 42 . . . Explosive 660 | . 94 . 566 Electromagnetic . | . . . . Impact . | . . . . Slashing . | . . . . Piercing . | . . . . Highest Corruption . | . . . . Average Corruption . | . . . . Corruption Purged . | . . . . Overload Shots . | . . . . Overflow Damage 31 | . 10 . 21 Projectiles . | . . . . Explosions 31 | . 10 . 21 Melee . | . . . . Knockbacks . | . . . . Impact . | . . . . Kinetic . | . . . . Secondary . | . . . . Self-Inflicted Damage 206 | . 113 . 93 Shots 3 | . 1 . 2 Rammed 1 | . 1 . . Targets Rammed 1 | . 1 . . Kicked . | . . . . Crushed . | . . . . Highest Temperature 40 | 40 9 2 36 Average Temperature 16 | 26 7 2 21 Received Heat Transfer 219 | . 141 78 . Siege Activations . | . . . . Robots Corrupted . | . . . . Combat Hostiles . | . . . . Parts Fried . | . . . . Impact Corruptions . | . . . . Robots Melted . | . . . . Combat Hostiles . | . . . . Parts Melted . | . . . . Heat Transferred 100 | 100 . . . Parts Sabotaged . | . . . . Parts Stolen . | . . . . Parts Stripped . | . . . . Power Chain Reactions . | . . . . Missiles Intercepted . | . . . . Alert | -11 -10 -10 -10 ------- Run | Scr Mat Min Exi Peak Influence 279 | 10 279 218 . Initial 13 | . 6 13 . Average 90 | 6 74 146 . Maximum Alert Level 1 | . 1 1 . Low Security (%) 84 | 100 97 44 . Level 1 15 | . 2 55 . Level 2 . | . . . . Level 3 . | . . . . Level 4 . | . . . . Level 5 . | . . . . High Security . | . . . . Max Security . | . . . . Squads Dispatched 6 | . 5 1 . Investigation 4 | . 3 1 . Extermination . | . . . . Reinforcement 2 | . 2 . . Assault . | . . . . Garrison . | . . . . Intercept . | . . . . Construction Impeded . | . . . . Haulers Reinforced . | . . . . Active Scanning Responses . | . . . . Cargo Convoy Interrupts . | . . . . Stealth | -11 -10 -10 -10 --------- Run | Scr Mat Min Exi Distress Signals . | . . . . Communications Jammed . | . . . . Distress Signals . | . . . . Times Spotted 48 | . 32 12 4 Peak Tracking Total 5 | . 3 5 5 Tactical Retreats 4 | . 3 1 . Traps | -11 -10 -10 -10 ------- Run | Scr Mat Min Exi Traps Triggered 4 | . 4 . . Indirectly . | . . . . Trap Hack Attempts . | . . . . Triggered . | . . . . Disarmed . | . . . . Reprogrammed . | . . . . Reused . | . . . . Traps Extracted . | . . . . Installed . | . . . . Triggered . | . . . . Machines | -11 -10 -10 -10 ---------- Run | Scr Mat Min Exi Machines Disabled 5 | . 1 . 4 Max in Single Turn 3 | . 1 . 3 Machines Sabotaged . | . . . . Garrisons Compromised . | . . . . Overloaded Fab Kills . | . . . . Hacking | -11 -10 -10 -10 --------- Run | Scr Mat Min Exi Machines Accessed 12 | . 10 1 1 Terminals 7 | . 7 . . Fabricators . | . . . . Repair Stations 1 | . 1 . . Recycling Units 2 | . 2 . . Scanalyzers . | . . . . Garrison Access . | . . . . Total Hacks 32 | . 26 1 5 Successful 20 | . 14 1 5 Failed 12 | . 12 . . Catastrophic 1 | . 1 . . Database Lockouts . | . . . . Manual 15 | . 15 . . Terminals 23 | . 23 . . Fabricators . | . . . . Repair Stations 1 | . 1 . . Recycling Units 2 | . 2 . . Scanalyzers . | . . . . Garrison Access . | . . . . Terminal Hacks 16 | . 10 1 5 Record 5 | . . . 5 Part Schematic 4 | . 4 . . Robot Analysis 2 | . 2 . . Prototype ID Bank 2 | . 2 . . Open Door 1 | . . 1 . Unreport Threat 1 | . 1 . . Hauler Manifests 1 | . 1 . . Fabricator Hacks . | . . . . Repair Station Hacks 1 | . 1 . . Refit 1 | . 1 . . Recycling Unit Hacks . | . . . . Scanalyzer . | . . . . Garrison Access Hacks . | . . . . Unauthorized Hacks 3 | . 3 . . Terminals 1 | . 1 . . Track 1 | . 1 . . Fabricators . | . . . . Repair Stations . | . . . . Recycling Units 2 | . 2 . . Tunnel 2 | . 2 . . Scanalyzers . | . . . . Garrison Access . | . . . . Data Cores Recovered . | . . . . Used . | . . . . Hacking Detections 8 | . 8 . . Full Trace Events . | . . . . Feedback Events . | . . . . Feedback Blocked . | . . . . Robot Schematics Acquired . | . . . . Robots Built . | . . . . Authchips . | . . . . Time . | . . . . Total Robot Build Rating . | . . . . Part Schematics Acquired 4 | . 4 . . Parts Built . | . . . . Authchips . | . . . . Time . | . . . . Total Part Build Rating . | . . . . Parts Repaired . | . . . . Time . | . . . . Parts Recycled . | . . . . Recycled Matter . | . . . . Retrieved Matter . | . . . . Retrieved Components . | . . . . Parts Scanalyzed . | . . . . Part Schematics Acquired . | . . . . Parts Damaged . | . . . . Bothacking | -11 -10 -10 -10 ------------ Run | Scr Mat Min Exi Used RIF Installer . | . . . . Robots Hacked . | . . . . Non-combat . | . . . . Combat . | . . . . Robot Hacks Applied . | . . . . Relay Couplers Released . | . . . . Robots Rewired . | . . . . Allies Hacked . | . . . . Hacks Repelled . | . . . . Allies | -11 -10 -10 -10 -------- Run | Scr Mat Min Exi Total Allies . | . . . . Largest Group . | . . . . Highest-Rated Group . | . . . . Highest-Rated Ally . | . . . . Total Orders . | . . . . Ally Attacks . | . . . . Total Damage . | . . . . Kills . | . . . . Allies Corrupted . | . . . . Allies Melted . | . . . . Intel | -11 -10 -10 -10 ------- Run | Scr Mat Min Exi Robot Analysis Total 2 | . 2 . . Derelict Logs Recovered . | . . . . Drone Launches . | . . . . Drone Recoveries . | . . . . Exploration | -11 -10 -10 -10 ------------- Run | Scr Mat Min Exi Turns Passed 3942 | 41 1441 487 1973 Spaces Moved 1929 | 20 865 222 822 Core . | . . . . Treads 1161 | . 245 94 822 Legs 16 | 16 . . . Wheels 752 | 4 620 128 . Hover . | . . . . Flight . | . . . . Fastest Speed 80 | 80 80 145 160 Average Speed 178 | 112 131 185 227 Slowest Speed 240 | 120 200 240 240 Overloaded Moves . | . . . . Propulsion Burnouts . | . . . . Robots Hopped . | . . . . Cave-ins Triggered . | . . . . Exploration Rate (%) 52 | 3 99 36 70 Regions Visited 3 Branch Regions 2 Pre-discovered Areas 3 | . 2 . 1 Known Exits Taken . | . . . . Unknown Exits Taken 3 | 1 1 1 . Scrap Searched 1 | . . 1 . Spaces Dug . | . . . . Terrain Destroyed 65 | . 24 . 41 Melee . | . . . . Projectile . | . . . . AOE 65 | . 24 . 41 Terrain Rammed . | . . . . Walls Destroyed . | . . . . Machines Disabled . | . . . . Actions | -11 -10 -10 -10 --------- Run | Scr Mat Min Exi Total 2276 | 28 1059 263 926 Wait 72 | 1 55 10 6 Move 1926 | 19 864 221 822 Hop . | . . . . Pick Up 70 | 1 29 4 36 Fast Attach 12 | . 10 2 . Attach 6 | . 3 . 3 Detach 3 | . 2 . 1 Swap 22 | 2 13 3 4 Drop 69 | . 22 5 42 Fire 95 | 5 60 18 12 Melee . | . . . . Ram . | . . . . Kick . | . . . . Crush 1 | . 1 . . Escape Stasis . | . . . . Rewire . | . . . . Trap . | . . . . Miscellaneous . | . . . . Route ------- -11/Scrapyard -10/Materials (discovered 4 exits: [*Mat x3] / *Min) -10/Mines (discovered 2 exits: [*Mat] / *Exi) -10/Exiles (discovered 2 exits: [*Min x2]) History --------- Turn | Location | Event 1 | -11/Scrapyard | Discovered new exit (range 3) 42 | -11/Scrapyard | Entered Materials 309 | -10/Materials | Build established: Mutant 453 | -10/Materials | Discovered new exit (range 16) 503 | -10/Materials | Discovered new exit (range 3) 699 | -10/Materials | Discovered new exit (range 10) 875 | -10/Materials | Core integrity fell below 50% 1201 | -10/Materials | Discovered new exit (range 10) 1483 | -10/Materials | Entered Mines 1509 | -10/Mines | Met a Derelict bent on vengeance 1716 | -10/Mines | Deemed a non-threat by the Exiles lab entrance 1716 | -10/Mines | Discovered new exit (range 5) 1850 | -10/Mines | Discovered new exit (range 6) 1858 | -10/Mines | Met a Derelict shopkeep closing up shop 1970 | -10/Mines | Entered Exiles 2041 | -10/Exiles | Discovered new exit (range 15) 2125 | -10/Exiles | Met 8R-AWN 2166 | -10/Exiles | Met EX-HEX 2478 | -10/Exiles | Met EX-DEC 2555 | -10/Exiles | Learned location of Zion (-6) 2702 | -10/Exiles | Discovered new exit (range 14) 2836 | -10/Exiles | Met EX-BIN 3906 | -10/Exiles | Attacked by the Exiles 3911 | -10/Exiles | Destroyed EX-HEX 3928 | -10/Exiles | Core integrity fell below 20% 3943 | -10/Exiles | Destroyed by 8R-AWN with 8R-AWN's Boregun Last Messages --------------- 03917_ Penetrated by HV Slug. 03917_ HV Slug penetrates Wall. 03919_ Penetrated by HV Slug. 03919_ HV Slug penetrates Wall. 03919_ Penetrated by HV Slug. 03921_ HV Slug penetrates Wall. 03921_ HV Slug penetrates Earth. 03924_ The unstable cave ceiling collapses. 03925_ Penetrated by HV Slug. 03927_ HV Slug penetrates Machine. 03929_ Penetrated by HV Slug. 03932_ The unstable cave ceiling collapses. 03932_ Penetrated by HV Slug. 03934_ Propulsion Shielding destroyed. 03936_ HV Slug penetrates Wall. 03936_ Penetrated by HV Slug. 03940_ The unstable cave ceiling collapses. 03941_ Penetrated by HV Slug. 03941_ Critical hit (Destroy). 03943_ Penetrated by HV Slug. Map ----- +----------------------------------------------------+ | """"??????????????????????????????????? | | """??????????????????????????????????? | | """??????????????????????????????????? | | """??????????????????????????????????? | | """??????????????????????????????????? | | """??????????????????????????????????? | | """??????????????????????????????????? | | """??????????????????????????????????? | | " "X" """??????????????????????????????????? | | " """ ???????????????????????????????????? | | " """""""""??????????????????????????????????? | | " #######?????????????????????????????????????? | | " #???????????????????????????????????????????? | | #???????????????????????????????????????????? | | ##??????? ??????????????????????????????????? | | ##???####;######???????????????????????????? | | #####"""" """"##??????????????????????????? | | " """ """"##?????????????????????????? | | " " #?????????????????????????? | | " """#?????????????????????????? | | a"#??##???????#####?????????? | | " " ## ##?????##" #?????????? | | #?????#" #?????????? | | """ ! #????##" ##????????? | | ##""" ! # #??### ###??????? | | ?#####""" =%@ #??# ######## | | ?????##""" ! #?## #""""## | | ??????#"""" g### | | ?????##"" ! ## | | ??####"""" *%= #### | | ###""" ""#?#"""""#### | | """" #"""##?#######??#### | | ######??????????????# | | ##???????????????????? | | #????????????????????? | | "" "" #????????????????????? | | # ##""" " " ""# ##????????????????????? | | # ######""" """# ?????????????????????? | | # #????###""""### ## ##?????????????????????? | | # ####???######????? ???????????????????????? | | "!#???????????????? ???????????????????????? | | " !#??????????????????????????????????????????? | | " "#??????????????????????????????????????????? | | ""!"#??????????????????????????????????????????? | | #######??????????????????????????????????????????? | | ?????????????????????????????????????????????????? | | ?????????????????????????????????????????????????? | | ?????????????????????????????????????????????????? | | ?????????????????????????????????????????????????? | | ?????????????????????????????????????????????????? | +----------------------------------------------------+ Best States ------------- Heat Dissipation 35 Energy Generation 14 Energy Capacity 250 Matter Stores 300 Matter Capacity 300 Sight Range 16 Terrain Scan Density 10 Armor Coverage 225 Propulsion Shielding 33 Evasion (%) 45 Recoil Reduction 2 Item Schematics ----------------- Hcp. Storage Unit | -10/Materials | Hacked Lrg. Storage Unit | -10/Materials | Hacked Huge Storage Unit | -10/Materials | Hacked Lgt. Armor Plating | -10/Materials | Hacked Robot Schematics ------------------ None Fabricated ------------ Nothing Alien Tech Used ----------------- None Achievements -------------- None Challenges ------------ None Game ------ Seed AblativeRecyclingMatter Manual? 0 Play Time 00:23:30 Cumulative 94.4 hours Start 2021.10.31 @ 15:37:26 End 2021.10.31 @ 16:02:13 Sessions 3 Manual Loads 0 Difficulty Rogue Special Mode None Game No. 63 Rogue 62 Adventurer 1 Explorer 0 Win Type - Total 2 Types 2/0/0/0/0/0/0/0/0 Lore% 41 Gallery% 53 Achievement% 42 Wizard Run 0 Options --------- ASCII 0 Keyboard 1 Movement Vi Keybinds 0 Fullscreen 2 Font 18/TerminusBold Map View 76x50 Tactical HUD 1 Map Filters NONE Filters NONE Steam 1 RUN: bfcbc6d3-cfce-4460-9737-87a665e0f239